[Event "Titled Tuesday Blitz February 14 Early 2023"]
[White "Barp, Alberto"]
[Black "Robledo, Cristian"]
[WhiteFideId "872555"]
[BlackFideId "133450"]
[WhiteElo "2432"]
[BlackElo "2270"]
[Result "1-0"]
[Round "10"]
[TimeControl "180+2"]
[Date "2023.02.14"]
[WhiteClock "0:00:36"]
[BlackClock "0:01:06"]

1. d4 {[%clk 0:02:41]}  d5 {[%clk 0:02:59]} 2. Bg5 {[%clk 0:02:40]}  c5 {[%clk 0:02:54]} 3. e3 {[%clk 0:02:40]}  Nc6 {[%clk 0:02:53]} 4. c3 {[%clk 0:02:39]}  Qb6 {[%clk 0:02:53]} 5. Qb3 {[%clk 0:02:39]}  c4 {[%clk 0:02:52]} 6. Qxb6 {[%clk 0:02:32]}  axb6 {[%clk 0:02:53]} 7. Na3 {[%clk 0:02:33]}  f6 {[%clk 0:02:51]} 8. Bh4 {[%clk 0:02:32]}  Bf5 {[%clk 0:02:48]} 9. f3 {[%clk 0:02:13]}  e5 {[%clk 0:02:45]} 10. Nb5 {[%clk 0:02:10]}  Kf7 {[%clk 0:02:43]} 11. Nc7 {[%clk 0:01:46]}  Ra5 {[%clk 0:02:40]} 12. Nxd5 {[%clk 0:01:46]}  Rxd5 {[%clk 0:02:36]} 13. e4 {[%clk 0:01:28]}  Rxd4 {[%clk 0:02:15]} 14. cxd4 {[%clk 0:01:24]}  Nxd4 {[%clk 0:02:16]} 15. exf5 {[%clk 0:01:11]}  Nc2+ {[%clk 0:02:16]} 16. Kd2 {[%clk 0:01:09]}  Nxa1 {[%clk 0:02:17]} 17. Bxc4+ {[%clk 0:01:09]}  Ke8 {[%clk 0:02:17]} 18. Ne2 {[%clk 0:01:04]}  Bb4+ {[%clk 0:02:11]} 19. Kd3 {[%clk 0:01:04]}  Nh6 {[%clk 0:02:08]} 20. g4 {[%clk 0:01:01]}  Ke7 {[%clk 0:02:06]} 21. Rxa1 {[%clk 0:00:58]}  Rd8+ {[%clk 0:02:04]} 22. Kc2 {[%clk 0:00:58]}  Rd2+ {[%clk 0:01:58]} 23. Kb3 {[%clk 0:00:58]}  Bc5 {[%clk 0:01:58]} 24. Be1 {[%clk 0:00:55]}  Rd8 {[%clk 0:01:56]} 25. Nc3 {[%clk 0:00:50]}  Nf7 {[%clk 0:01:51]} 26. Rd1 {[%clk 0:00:50]}  Bd4 {[%clk 0:01:49]} 27. Ne4 {[%clk 0:00:46]}  Ng5 {[%clk 0:01:41]} 28. Bb4+ {[%clk 0:00:46]}  Ke8 {[%clk 0:01:40]} 29. Bb5+ {[%clk 0:00:47]}  Kf7 {[%clk 0:01:39]} 30. Bc4+ {[%clk 0:00:45]}  Ke8 {[%clk 0:01:39]} 31. Nd6+ {[%clk 0:00:46]}  Kd7 {[%clk 0:01:31]} 32. Nb5 {[%clk 0:00:46]}  Kc6 {[%clk 0:01:24]} 33. Nxd4+ {[%clk 0:00:44]}  exd4 {[%clk 0:01:25]} 34. Bd3 {[%clk 0:00:37]}  Re8 {[%clk 0:01:06]} 35. Rc1+ {[%clk 0:00:38]}  Kd5 {[%clk 0:01:06]} 36. Bc4+ {[%clk 0:00:36]} 1-0


[Site "https://www.chess.com"]

[Event "Titled Tuesday Blitz February 14 Early 2023"]
[White "Cherniaiev, Tykhon"]
[Black "Mamedov, Edgar"]
[WhiteFideId "14182360"]
[BlackFideId "13739980"]
[WhiteElo "2330"]
[BlackElo "2193"]
[Result "1/2-1/2"]
[Round "10"]
[TimeControl "180+2"]
[Date "2023.02.14"]
[WhiteClock "0:00:22"]
[BlackClock "0:00:48"]

1. Nf3 {[%clk 0:03:00]}  d5 {[%clk 0:02:56]} 2. d4 {[%clk 0:03:01]}  Nf6 {[%clk 0:02:52]} 3. c4 {[%clk 0:03:01]}  c6 {[%clk 0:02:51]} 4. e3 {[%clk 0:03:01]}  e6 {[%clk 0:02:50]} 5. Nbd2 {[%clk 0:03:01]}  Nbd7 {[%clk 0:02:46]} 6. Bd3 {[%clk 0:03:02]}  Bd6 {[%clk 0:02:41]} 7. O-O {[%clk 0:03:02]}  O-O {[%clk 0:02:39]} 8. e4 {[%clk 0:03:02]}  e5 {[%clk 0:02:35]} 9. cxd5 {[%clk 0:03:01]}  cxd5 {[%clk 0:02:34]} 10. exd5 {[%clk 0:03:02]}  exd4 {[%clk 0:02:32]} 11. Nc4 {[%clk 0:03:02]}  Bb8 {[%clk 0:02:29]} 12. Bg5 {[%clk 0:02:53]}  h6 {[%clk 0:02:24]} 13. Bh4 {[%clk 0:02:51]}  Nb6 {[%clk 0:02:20]} 14. Nxb6 {[%clk 0:02:48]}  Qxb6 {[%clk 0:02:18]} 15. Nxd4 {[%clk 0:02:42]}  Nxd5 {[%clk 0:02:07]} 16. Nf5 {[%clk 0:02:38]}  Bxf5 {[%clk 0:02:05]} 17. Bxf5 {[%clk 0:02:39]}  Nf6 {[%clk 0:02:03]} 18. Qf3 {[%clk 0:02:33]}  g5 {[%clk 0:01:58]} 19. Bg3 {[%clk 0:02:33]}  Bxg3 {[%clk 0:01:56]} 20. hxg3 {[%clk 0:02:33]}  Rad8 {[%clk 0:01:52]} 21. b3 {[%clk 0:02:30]}  Rd2 {[%clk 0:01:47]} 22. Rfe1 {[%clk 0:02:17]}  Kg7 {[%clk 0:01:41]} 23. Re7 {[%clk 0:02:08]}  Nd5 {[%clk 0:01:29]} 24. Rd7 {[%clk 0:01:55]}  Rd8 {[%clk 0:01:27]} 25. Rxd8 {[%clk 0:01:20]}  Qxd8 {[%clk 0:01:28]} 26. Rd1 {[%clk 0:01:08]}  Rxd1+ {[%clk 0:01:22]} 27. Qxd1 {[%clk 0:01:09]}  Qa5 {[%clk 0:01:21]} 28. a4 {[%clk 0:00:57]}  Nf6 {[%clk 0:01:18]} 29. Qf3 {[%clk 0:00:50]}  Qe5 {[%clk 0:01:12]} 30. g4 {[%clk 0:00:40]}  Qa1+ {[%clk 0:01:11]} 31. Kh2 {[%clk 0:00:39]}  Qe5+ {[%clk 0:01:10]} 32. g3 {[%clk 0:00:40]}  b5 {[%clk 0:01:03]} 33. axb5 {[%clk 0:00:31]}  Qxb5 {[%clk 0:01:03]} 34. Qc3 {[%clk 0:00:31]}  Qb6 {[%clk 0:00:57]} 35. Kg1 {[%clk 0:00:30]}  a5 {[%clk 0:00:53]} 36. Kg2 {[%clk 0:00:25]}  Qb7+ {[%clk 0:00:50]} 37. Kg1 {[%clk 0:00:24]}  Qb6 {[%clk 0:00:49]} 38. Kg2 {[%clk 0:00:22]}  Qb7+ {[%clk 0:00:49]} 39. Kg1 {[%clk 0:00:22]}  Qb6 {[%clk 0:00:48]} 1/2-1/2


[Site "https://www.chess.com"]

[Event "Titled Tuesday Blitz February 14 Early 2023"]
[White "Yurasova, Daria"]
[Black "Taspinar, Yanki"]
[WhiteFideId "34146919"]
[BlackFideId "34561188"]
[WhiteElo "2095"]
[BlackElo "2262"]
[Result "1-0"]
[Round "10"]
[TimeControl "180+2"]
[Date "2023.02.14"]
[WhiteClock "0:00:16"]
[BlackClock "0:00:14"]

1. d4 {[%clk 0:03:00]}  Nf6 {[%clk 0:02:56]} 2. Bg5 {[%clk 0:03:00]}  Ne4 {[%clk 0:02:55]} 3. Bf4 {[%clk 0:03:00]}  d5 {[%clk 0:02:48]} 4. e3 {[%clk 0:03:00]}  g6 {[%clk 0:02:47]} 5. Nd2 {[%clk 0:03:00]}  Nxd2 {[%clk 0:02:47]} 6. Qxd2 {[%clk 0:03:01]}  Bg7 {[%clk 0:02:47]} 7. Bd3 {[%clk 0:03:00]}  O-O {[%clk 0:02:47]} 8. h4 {[%clk 0:03:00]}  h5 {[%clk 0:02:46]} 9. c3 {[%clk 0:03:00]}  c5 {[%clk 0:02:45]} 10. Nf3 {[%clk 0:02:56]}  Nc6 {[%clk 0:02:45]} 11. O-O {[%clk 0:02:47]}  Bg4 {[%clk 0:02:43]} 12. Be2 {[%clk 0:02:46]}  Rc8 {[%clk 0:02:25]} 13. dxc5 {[%clk 0:02:10]}  e5 {[%clk 0:01:39]} 14. Bg3 {[%clk 0:02:10]}  Qe7 {[%clk 0:01:22]} 15. Qxd5 {[%clk 0:02:05]}  Rfd8 {[%clk 0:00:59]} 16. Qe4 {[%clk 0:01:27]}  Bf5 {[%clk 0:00:52]} 17. Qc4 {[%clk 0:01:25]}  Be6 {[%clk 0:00:46]} 18. Qb5 {[%clk 0:01:20]}  a6 {[%clk 0:00:29]} 19. Qa4 {[%clk 0:01:02]}  Bg4 {[%clk 0:00:29]} 20. Qc2 {[%clk 0:00:56]}  Qxc5 {[%clk 0:00:26]} 21. Rfd1 {[%clk 0:00:47]}  Bf5 {[%clk 0:00:22]} 22. e4 {[%clk 0:00:44]}  Bg4 {[%clk 0:00:15]} 23. Rxd8+ {[%clk 0:00:44]}  Rxd8 {[%clk 0:00:15]} 24. Rd1 {[%clk 0:00:45]}  Rc8 {[%clk 0:00:16]} 25. Rd5 {[%clk 0:00:44]}  Qe7 {[%clk 0:00:16]} 26. Qd1 {[%clk 0:00:40]}  Be6 {[%clk 0:00:16]} 27. Rd2 {[%clk 0:00:37]}  b5 {[%clk 0:00:15]} 28. a4 {[%clk 0:00:34]}  Rb8 {[%clk 0:00:11]} 29. Ng5 {[%clk 0:00:28]}  Bc8 {[%clk 0:00:05]} 30. axb5 {[%clk 0:00:25]}  axb5 {[%clk 0:00:06]} 31. Rd5 {[%clk 0:00:26]}  f6 {[%clk 0:00:05]} 32. Bxb5 {[%clk 0:00:19]}  Rxb5 {[%clk 0:00:05]} 33. Rxb5 {[%clk 0:00:20]}  fxg5 {[%clk 0:00:02]} 34. Qd5+ {[%clk 0:00:20]}  Kh7 {[%clk 0:00:02]} 35. Qxc6 {[%clk 0:00:20]}  gxh4 {[%clk 0:00:03]} 36. Bxh4 {[%clk 0:00:18]}  Qxh4 {[%clk 0:00:01]} 37. Qxc8 {[%clk 0:00:19]}  Qxe4 {[%clk 0:00:02]} 38. Qc5 {[%clk 0:00:17]}  Qb1+ {[%clk 0:00:02]} 39. Kh2 {[%clk 0:00:17]}  Qf5 {[%clk 0:00:03]} 40. Qe3 {[%clk 0:00:14]}  h4 {[%clk 0:00:03]} 41. Rb7 {[%clk 0:00:13]}  Kg8 {[%clk 0:00:03]} 42. Qf3 {[%clk 0:00:12]}  Qxf3 {[%clk 0:00:01]} 43. gxf3 {[%clk 0:00:12]}  Bh6 {[%clk 0:00:02]} 44. Rb6 {[%clk 0:00:12]}  Bf4+ {[%clk 0:00:02]} 45. Kh3 {[%clk 0:00:11]}  g5 {[%clk 0:00:03]} 46. b4 {[%clk 0:00:11]}  Kf7 {[%clk 0:00:04]} 47. Rc6 {[%clk 0:00:11]}  Ke7 {[%clk 0:00:05]} 48. Kg4 {[%clk 0:00:11]}  Kd7 {[%clk 0:00:06]} 49. Rh6 {[%clk 0:00:11]}  Bd2 {[%clk 0:00:05]} 50. c4 {[%clk 0:00:10]}  Bxb4 {[%clk 0:00:05]} 51. Rh7+ {[%clk 0:00:11]}  Ke6 {[%clk 0:00:05]} 52. Kxg5 {[%clk 0:00:12]}  Be1 {[%clk 0:00:05]} 53. Rxh4 {[%clk 0:00:11]}  Bxf2 {[%clk 0:00:05]} 54. Rh6+ {[%clk 0:00:12]}  Kd7 {[%clk 0:00:06]} 55. Kf5 {[%clk 0:00:12]}  Bd4 {[%clk 0:00:04]} 56. Re6 {[%clk 0:00:11]}  Kc7 {[%clk 0:00:04]} 57. Rxe5 {[%clk 0:00:12]}  Bc3 {[%clk 0:00:04]} 58. Re4 {[%clk 0:00:11]}  Kd6 {[%clk 0:00:05]} 59. Kg4 {[%clk 0:00:11]}  Bg7 {[%clk 0:00:04]} 60. f4 {[%clk 0:00:11]}  Bf8 {[%clk 0:00:05]} 61. f5 {[%clk 0:00:12]}  Bg7 {[%clk 0:00:06]} 62. Kg5 {[%clk 0:00:12]}  Bf8 {[%clk 0:00:07]} 63. Kg6 {[%clk 0:00:13]}  Bg7 {[%clk 0:00:08]} 64. Kxg7 {[%clk 0:00:13]}  Kd7 {[%clk 0:00:08]} 65. f6 {[%clk 0:00:13]}  Kd6 {[%clk 0:00:09]} 66. f7 {[%clk 0:00:14]}  Kd7 {[%clk 0:00:10]} 67. c5 {[%clk 0:00:14]}  Kc7 {[%clk 0:00:11]} 68. f8=Q {[%clk 0:00:14]}  Kd7 {[%clk 0:00:11]} 69. Qd6+ {[%clk 0:00:14]}  Kc8 {[%clk 0:00:12]} 70. Re8+ {[%clk 0:00:14]}  Kb7 {[%clk 0:00:13]} 71. Re7+ {[%clk 0:00:15]}  Kc8 {[%clk 0:00:14]} 72. Qd7+ {[%clk 0:00:15]}  Kb8 {[%clk 0:00:14]} 73. Qb7# {[%clk 0:00:16]} 1-0


[Site "https://www.chess.com"]

[Event "Titled Tuesday Blitz February 14 Early 2023"]
[White "Fiorito, Francisco"]
[Black "Csonka, Balazs"]
[WhiteFideId "180165"]
[BlackFideId "742910"]
[WhiteElo "2305"]
[BlackElo "2496"]
[Result "0-1"]
[Round "10"]
[TimeControl "180+2"]
[Date "2023.02.14"]
[WhiteClock "0:01:14"]
[BlackClock "0:00:18"]

1. d4 {[%clk 0:03:00]}  Nf6 {[%clk 0:02:56]} 2. Nc3 {[%clk 0:03:01]}  e6 {[%clk 0:02:54]} 3. Bf4 {[%clk 0:03:01]}  Bb4 {[%clk 0:02:53]} 4. Qd3 {[%clk 0:02:54]}  d5 {[%clk 0:02:45]} 5. a3 {[%clk 0:02:51]}  Bd6 {[%clk 0:02:36]} 6. Bxd6 {[%clk 0:02:50]}  cxd6 {[%clk 0:02:33]} 7. Nf3 {[%clk 0:02:49]}  b6 {[%clk 0:02:30]} 8. e4 {[%clk 0:02:45]}  Ba6 {[%clk 0:02:26]} 9. Qe3 {[%clk 0:02:44]}  Bxf1 {[%clk 0:02:19]} 10. Rxf1 {[%clk 0:02:45]}  dxe4 {[%clk 0:02:05]} 11. Nxe4 {[%clk 0:02:46]}  O-O {[%clk 0:02:02]} 12. O-O-O {[%clk 0:02:45]}  Nxe4 {[%clk 0:01:59]} 13. Qxe4 {[%clk 0:02:45]}  d5 {[%clk 0:02:00]} 14. Qd3 {[%clk 0:02:46]}  Nc6 {[%clk 0:01:59]} 15. Kb1 {[%clk 0:02:45]}  Rb8 {[%clk 0:01:46]} 16. h4 {[%clk 0:02:45]}  b5 {[%clk 0:01:32]} 17. Ng5 {[%clk 0:02:45]}  g6 {[%clk 0:01:32]} 18. f4 {[%clk 0:02:34]}  b4 {[%clk 0:01:20]} 19. h5 {[%clk 0:02:22]}  bxa3 {[%clk 0:01:02]} 20. Qxa3 {[%clk 0:02:23]}  Qa5 {[%clk 0:01:02]} 21. Qxa5 {[%clk 0:02:17]}  Nxa5 {[%clk 0:01:03]} 22. hxg6 {[%clk 0:02:18]}  hxg6 {[%clk 0:01:03]} 23. b3 {[%clk 0:02:13]}  Kg7 {[%clk 0:00:57]} 24. Rf3 {[%clk 0:02:12]}  Rh8 {[%clk 0:00:53]} 25. Nh3 {[%clk 0:02:08]}  Nc4 {[%clk 0:00:49]} 26. Kc1 {[%clk 0:02:07]}  Nd6 {[%clk 0:00:48]} 27. g4 {[%clk 0:01:58]}  a5 {[%clk 0:00:46]} 28. Nf2 {[%clk 0:01:53]}  Rb4 {[%clk 0:00:43]} 29. Rh3 {[%clk 0:01:21]}  Rxh3 {[%clk 0:00:42]} 30. Nxh3 {[%clk 0:01:22]}  Nb5 {[%clk 0:00:38]} 31. Nf2 {[%clk 0:01:18]}  Rxd4 {[%clk 0:00:33]} 32. Nd3 {[%clk 0:01:18]}  g5 {[%clk 0:00:26]} 33. Rf1 {[%clk 0:01:14]}  gxf4 {[%clk 0:00:24]} 34. Nxf4 {[%clk 0:01:15]}  a4 {[%clk 0:00:18]} 35. bxa4 {[%clk 0:01:13]}  Rxa4 {[%clk 0:00:19]} 36. Nh5+ {[%clk 0:01:14]}  Kf8 {[%clk 0:00:18]} 37. Nf6 {[%clk 0:01:14]}  Ra1+ {[%clk 0:00:18]} 0-1


[Site "https://www.chess.com"]

[Event "Titled Tuesday Blitz February 14 Early 2023"]
[White "Martinez Ramirez, Lennis"]
[Black "Reprintsev, Alexander"]
[WhiteFideId "3509079"]
[BlackFideId "14100541"]
[WhiteElo "2426"]
[BlackElo "2253"]
[Result "1-0"]
[Round "10"]
[TimeControl "180+2"]
[Date "2023.02.14"]
[WhiteClock "0:01:47"]
[BlackClock "0:00:15"]

1. c4 {[%clk 0:03:00]}  e5 {[%clk 0:02:59]} 2. Nc3 {[%clk 0:03:00]}  Nc6 {[%clk 0:02:59]} 3. g3 {[%clk 0:03:00]}  Bc5 {[%clk 0:02:58]} 4. Bg2 {[%clk 0:03:00]}  Nf6 {[%clk 0:02:58]} 5. a3 {[%clk 0:03:00]}  a5 {[%clk 0:02:52]} 6. e3 {[%clk 0:03:01]}  d6 {[%clk 0:02:46]} 7. Nge2 {[%clk 0:03:00]}  Bg4 {[%clk 0:02:42]} 8. h3 {[%clk 0:03:00]}  Bh5 {[%clk 0:02:42]} 9. O-O {[%clk 0:02:53]}  Qd7 {[%clk 0:02:39]} 10. g4 {[%clk 0:02:53]}  Nxg4 {[%clk 0:02:28]} 11. hxg4 {[%clk 0:02:52]}  Bxg4 {[%clk 0:02:28]} 12. Rb1 {[%clk 0:02:42]}  h5 {[%clk 0:02:21]} 13. f3 {[%clk 0:02:41]}  Bh3 {[%clk 0:02:20]} 14. d4 {[%clk 0:02:41]}  Ba7 {[%clk 0:01:51]} 15. Nb5 {[%clk 0:02:36]}  Rh6 {[%clk 0:01:47]} 16. Rf2 {[%clk 0:02:29]}  Rg6 {[%clk 0:01:45]} 17. Qf1 {[%clk 0:02:20]}  Bb6 {[%clk 0:01:32]} 18. Kh2 {[%clk 0:02:14]}  Bxg2 {[%clk 0:01:25]} 19. Rxg2 {[%clk 0:02:14]}  O-O-O {[%clk 0:01:25]} 20. Rxg6 {[%clk 0:02:09]}  fxg6 {[%clk 0:01:24]} 21. Qh3 {[%clk 0:02:09]}  Rf8 {[%clk 0:01:22]} 22. Qxd7+ {[%clk 0:02:08]}  Kxd7 {[%clk 0:01:22]} 23. Kg2 {[%clk 0:02:08]}  g5 {[%clk 0:01:21]} 24. b4 {[%clk 0:02:07]}  axb4 {[%clk 0:01:21]} 25. axb4 {[%clk 0:02:08]}  Ra8 {[%clk 0:00:53]} 26. c5 {[%clk 0:02:07]}  Ra2 {[%clk 0:00:49]} 27. Rb2 {[%clk 0:02:07]}  Rxb2 {[%clk 0:00:28]} 28. Bxb2 {[%clk 0:02:08]}  Ba7 {[%clk 0:00:28]} 29. d5 {[%clk 0:02:05]}  Nxb4 {[%clk 0:00:21]} 30. Nxa7 {[%clk 0:02:05]}  dxc5 {[%clk 0:00:21]} 31. Bxe5 {[%clk 0:02:04]}  g6 {[%clk 0:00:20]} 32. e4 {[%clk 0:02:04]}  Nd3 {[%clk 0:00:19]} 33. Bf6 {[%clk 0:02:03]}  c6 {[%clk 0:00:17]} 34. Bxg5 {[%clk 0:01:57]}  cxd5 {[%clk 0:00:17]} 35. exd5 {[%clk 0:01:56]}  Kd6 {[%clk 0:00:17]} 36. Nc3 {[%clk 0:01:55]}  c4 {[%clk 0:00:17]} 37. Nab5+ {[%clk 0:01:55]}  Kc5 {[%clk 0:00:17]} 38. Be7+ {[%clk 0:01:53]}  Kb6 {[%clk 0:00:15]} 39. Kg3 {[%clk 0:01:47]} 1-0


[Site "https://www.chess.com"]

[Event "Titled Tuesday Blitz February 14 Early 2023"]
[White "Dehtiarov, Roman"]
[Black "Jeet, Jain"]
[WhiteFideId "14186640"]
[BlackFideId "5073022"]
[WhiteElo "2289"]
[BlackElo "2199"]
[Result "1-0"]
[Round "10"]
[TimeControl "180+2"]
[Date "2023.02.14"]
[WhiteClock "0:02:18"]
[BlackClock "0:00:27"]

1. e4 {[%clk 0:03:00]}  c6 {[%clk 0:02:07]} 2. Nc3 {[%clk 0:03:00]}  d5 {[%clk 0:02:07]} 3. Nf3 {[%clk 0:03:00]}  g6 {[%clk 0:02:06]} 4. d4 {[%clk 0:02:59]}  Bg7 {[%clk 0:02:06]} 5. e5 {[%clk 0:03:00]}  Bg4 {[%clk 0:02:06]} 6. h3 {[%clk 0:03:00]}  Bxf3 {[%clk 0:02:06]} 7. Qxf3 {[%clk 0:03:01]}  h5 {[%clk 0:02:06]} 8. Bd3 {[%clk 0:03:00]}  e6 {[%clk 0:02:06]} 9. Ne2 {[%clk 0:03:00]}  c5 {[%clk 0:02:03]} 10. c3 {[%clk 0:03:00]}  Nc6 {[%clk 0:02:03]} 11. O-O {[%clk 0:02:59]}  Qb6 {[%clk 0:02:02]} 12. Rd1 {[%clk 0:02:55]}  Nge7 {[%clk 0:02:00]} 13. a3 {[%clk 0:02:54]}  a5 {[%clk 0:01:53]} 14. Be3 {[%clk 0:02:51]}  c4 {[%clk 0:01:37]} 15. Bc2 {[%clk 0:02:49]}  a4 {[%clk 0:01:36]} 16. Bg5 {[%clk 0:02:43]}  Nf5 {[%clk 0:01:35]} 17. Bxf5 {[%clk 0:02:40]}  gxf5 {[%clk 0:01:34]} 18. Nf4 {[%clk 0:02:40]}  Kd7 {[%clk 0:01:18]} 19. Nxh5 {[%clk 0:02:38]}  Rhg8 {[%clk 0:01:15]} 20. h4 {[%clk 0:02:34]}  Kc7 {[%clk 0:01:12]} 21. g3 {[%clk 0:02:30]}  Ra5 {[%clk 0:01:01]} 22. Rd2 {[%clk 0:02:29]}  Rb5 {[%clk 0:01:00]} 23. Nxg7 {[%clk 0:02:29]}  Rxg7 {[%clk 0:01:00]} 24. Bf6 {[%clk 0:02:29]}  Rg6 {[%clk 0:00:57]} 25. h5 {[%clk 0:02:29]}  Rh6 {[%clk 0:00:55]} 26. Ra2 {[%clk 0:02:25]}  Na5 {[%clk 0:00:53]} 27. Bg7 {[%clk 0:02:23]}  Rh7 {[%clk 0:00:52]} 28. h6 {[%clk 0:02:23]}  Nb3 {[%clk 0:00:53]} 29. Rc2 {[%clk 0:02:22]}  Na5 {[%clk 0:00:33]} 30. Qh5 {[%clk 0:02:20]}  Qc6 {[%clk 0:00:27]} 31. Qxf7+ {[%clk 0:02:20]}  Qd7 {[%clk 0:00:27]} 32. Qg6 {[%clk 0:02:18]} 1-0


[Site "https://www.chess.com"]

[Event "Titled Tuesday Blitz February 14 Early 2023"]
[White "Turzo, Attila"]
[Black "Skvortsov, Andrei"]
[WhiteFideId "704954"]
[BlackFideId "24108600"]
[WhiteElo "2279"]
[BlackElo "2313"]
[Result "1-0"]
[Round "10"]
[TimeControl "180+2"]
[Date "2023.02.14"]
[WhiteClock "0:00:21"]
[BlackClock "0:01:54"]

1. d4 {[%clk 0:03:00]}  b6 {[%clk 0:02:58]} 2. c4 {[%clk 0:03:00]}  Bb7 {[%clk 0:02:57]} 3. Nc3 {[%clk 0:03:00]}  g6 {[%clk 0:02:57]} 4. e4 {[%clk 0:02:59]}  Bg7 {[%clk 0:02:58]} 5. Nf3 {[%clk 0:02:59]}  e6 {[%clk 0:02:58]} 6. Be2 {[%clk 0:02:57]}  Ne7 {[%clk 0:02:59]} 7. O-O {[%clk 0:02:56]}  d5 {[%clk 0:02:59]} 8. cxd5 {[%clk 0:02:50]}  exd5 {[%clk 0:03:00]} 9. e5 {[%clk 0:02:51]}  O-O {[%clk 0:03:00]} 10. Bf4 {[%clk 0:02:45]}  c5 {[%clk 0:03:00]} 11. Qd2 {[%clk 0:02:44]}  Nbc6 {[%clk 0:02:59]} 12. Bh6 {[%clk 0:02:24]}  cxd4 {[%clk 0:02:57]} 13. Nb5 {[%clk 0:02:13]}  Bxh6 {[%clk 0:02:57]} 14. Qxh6 {[%clk 0:02:13]}  Nf5 {[%clk 0:02:57]} 15. Qf4 {[%clk 0:02:04]}  Re8 {[%clk 0:02:51]} 16. Bd3 {[%clk 0:01:59]}  a6 {[%clk 0:02:50]} 17. Bxf5 {[%clk 0:01:33]}  axb5 {[%clk 0:02:50]} 18. Bd3 {[%clk 0:01:33]}  b4 {[%clk 0:02:47]} 19. Bb5 {[%clk 0:01:31]}  Re6 {[%clk 0:02:34]} 20. Bxc6 {[%clk 0:01:20]}  Bxc6 {[%clk 0:02:33]} 21. Nxd4 {[%clk 0:01:08]}  b3 {[%clk 0:02:32]} 22. Nxe6 {[%clk 0:00:58]}  fxe6 {[%clk 0:02:33]} 23. axb3 {[%clk 0:00:58]}  Rxa1 {[%clk 0:02:30]} 24. Rxa1 {[%clk 0:00:59]}  Qe7 {[%clk 0:02:24]} 25. Rc1 {[%clk 0:00:54]}  Qd7 {[%clk 0:02:19]} 26. Qb4 {[%clk 0:00:52]}  Bb5 {[%clk 0:02:15]} 27. Qc3 {[%clk 0:00:44]}  d4 {[%clk 0:02:14]} 28. Qc8+ {[%clk 0:00:42]}  Qxc8 {[%clk 0:02:09]} 29. Rxc8+ {[%clk 0:00:43]}  Kg7 {[%clk 0:02:09]} 30. f4 {[%clk 0:00:43]}  g5 {[%clk 0:02:08]} 31. g3 {[%clk 0:00:38]}  Kg6 {[%clk 0:02:06]} 32. Rb8 {[%clk 0:00:23]}  d3 {[%clk 0:02:00]} 33. Kf2 {[%clk 0:00:21]}  d2 {[%clk 0:01:57]} 34. Rd8 {[%clk 0:00:20]}  gxf4 {[%clk 0:01:57]} 35. gxf4 {[%clk 0:00:20]}  Kf5 {[%clk 0:01:57]} 36. Ke3 {[%clk 0:00:21]}  Bc6 {[%clk 0:01:53]} 37. Rxd2 {[%clk 0:00:20]}  Bd5 {[%clk 0:01:54]} 38. b4 {[%clk 0:00:21]}  h6 {[%clk 0:01:53]} 39. Rxd5 {[%clk 0:00:20]}  exd5 {[%clk 0:01:54]} 40. Kd4 {[%clk 0:00:21]} 1-0


[Site "https://www.chess.com"]

[Event "Titled Tuesday Blitz February 14 Early 2023"]
[White "Mohamed Anees M"]
[Black "Bilan, Danila"]
[WhiteFideId "35065815"]
[BlackFideId "24161918"]
[WhiteElo "2315"]
[BlackElo "2303"]
[Result "1-0"]
[Round "10"]
[TimeControl "180+2"]
[Date "2023.02.14"]
[WhiteClock "0:01:00"]
[BlackClock "0:00:14"]

1. Nf3 {[%clk 0:03:00]}  d5 {[%clk 0:03:00]} 2. g3 {[%clk 0:02:59]}  Nf6 {[%clk 0:03:00]} 3. Bg2 {[%clk 0:02:59]}  Bf5 {[%clk 0:02:57]} 4. O-O {[%clk 0:02:58]}  e6 {[%clk 0:02:57]} 5. c4 {[%clk 0:02:59]}  c6 {[%clk 0:02:58]} 6. cxd5 {[%clk 0:02:56]}  cxd5 {[%clk 0:02:54]} 7. Qb3 {[%clk 0:02:56]}  Qb6 {[%clk 0:02:50]} 8. Qxb6 {[%clk 0:02:56]}  axb6 {[%clk 0:02:51]} 9. d3 {[%clk 0:02:57]}  Nc6 {[%clk 0:02:50]} 10. Nc3 {[%clk 0:02:56]}  Bc5 {[%clk 0:02:39]} 11. Nh4 {[%clk 0:02:54]}  Bg4 {[%clk 0:02:37]} 12. h3 {[%clk 0:02:54]}  Bh5 {[%clk 0:02:37]} 13. g4 {[%clk 0:02:54]}  Bg6 {[%clk 0:02:37]} 14. Nxg6 {[%clk 0:02:54]}  hxg6 {[%clk 0:02:38]} 15. a3 {[%clk 0:02:45]}  Ke7 {[%clk 0:02:25]} 16. Bg5 {[%clk 0:02:43]}  Bd6 {[%clk 0:02:15]} 17. f4 {[%clk 0:02:23]}  Nd4 {[%clk 0:02:07]} 18. e4 {[%clk 0:02:19]}  dxe4 {[%clk 0:02:05]} 19. dxe4 {[%clk 0:02:17]}  e5 {[%clk 0:01:51]} 20. Nd5+ {[%clk 0:02:08]}  Ke6 {[%clk 0:01:40]} 21. f5+ {[%clk 0:02:07]}  gxf5 {[%clk 0:01:34]} 22. exf5+ {[%clk 0:02:06]}  Kd7 {[%clk 0:01:26]} 23. Bxf6 {[%clk 0:02:06]}  gxf6 {[%clk 0:01:14]} 24. Nxb6+ {[%clk 0:02:05]}  Ke7 {[%clk 0:01:08]} 25. Nxa8 {[%clk 0:02:06]}  Rxa8 {[%clk 0:01:08]} 26. Bxb7 {[%clk 0:01:29]}  Rb8 {[%clk 0:01:04]} 27. Bd5 {[%clk 0:01:19]}  Rxb2 {[%clk 0:01:03]} 28. Rab1 {[%clk 0:01:15]}  Ne2+ {[%clk 0:00:26]} 29. Kf2 {[%clk 0:01:13]}  Bc5+ {[%clk 0:00:27]} 30. Kf3 {[%clk 0:01:12]}  Nd4+ {[%clk 0:00:25]} 31. Kg3 {[%clk 0:01:08]}  Bxa3 {[%clk 0:00:16]} 32. Rxb2 {[%clk 0:01:07]}  Bxb2 {[%clk 0:00:17]} 33. Rb1 {[%clk 0:01:07]}  Bc3 {[%clk 0:00:15]} 34. Rb7+ {[%clk 0:01:06]}  Kd6 {[%clk 0:00:15]} 35. Bxf7 {[%clk 0:01:07]}  Be1+ {[%clk 0:00:14]} 36. Kg2 {[%clk 0:01:06]}  e4 {[%clk 0:00:14]} 37. Bc4 {[%clk 0:01:04]}  Ke5 {[%clk 0:00:14]} 38. Re7+ {[%clk 0:00:59]}  Kf4 {[%clk 0:00:14]} 39. Bd5 {[%clk 0:01:00]}  e3 {[%clk 0:00:14]} 40. Re4+ {[%clk 0:01:00]} 1-0


[Site "https://www.chess.com"]